bitfinex/quotes_SOLUSD_20250420
["timestamp","ask_amount","ask_price","bid_price","bid_amount"]
[1745155810898,82.4,136.84,136.82,250.32]
[1745155817119,82.4,136.84,136.83,14.62]
[1745155822426,82.4,136.84,136.83,264.92]
[1745155832619,1.5294,136.86,136.83,264.92]
[1745155833732,26.0,136.84,136.83,264.92]
[1745155833938,82.4,136.82,136.79,0.063]
[1745155834118,82.4,136.81,136.8,264.92]
[1745155834641,108.4,136.81,136.8,264.92]
[1745155834822,109.9999,136.81,136.8,264.92]
[1745155836134,109.24534886,136.81,136.79,0.063]
[1745155836443,44.64964886,136.8,136.79,0.063]
[1745155836625,44.64964886,136.8,136.79,14.703]
[1745155840943,126.98664886,136.77,136.76,0.063]
[1745155841151,44.64964886,136.77,136.76,14.583]
[1745155841344,26.0,136.77,136.76,14.583]
[1745155843654,44.64964886,136.77,136.76,14.583]
[1745155847753,26.0,136.78,136.76,14.583]
[1745155847962,18.64964886,136.77,136.76,14.583]
[1745155848556,26.0,136.78,136.76,14.583]
[1745155850239,82.4,136.77,136.76,14.583]
[1745155850438,26.0,136.77,136.76,14.583]
[1745155853457,18.64964886,136.8,136.76,14.583]
[1745155854860,18.64964886,136.8,136.77,250.46]
[1745155855963,26.0,136.78,136.77,250.46]
[1745155863174,44.64964886,136.8,136.77,250.46]
[1745155864478,44.64964886,136.8,136.78,14.52]
[1745155864678,82.4,136.77,136.76,0.063]
[1745155864879,44.64964886,136.8,136.78,250.46]
[1745155870690,82.4,136.77,136.76,14.583]
[1745155870878,44.64964886,136.8,136.76,265.043]
[1745155876679,82.274,136.75,136.71,1.5997]
[1745155876887,82.274,136.74,136.73,264.92]
[1745155879486,82.274,136.74,136.73,272.8307]
[1745155879980,82.274,136.81,136.73,272.8307]
[1745155880180,82.274,136.8,136.73,272.8307]
[1745155881286,82.274,136.79,136.74,18.64964886]
[1745155881867,82.274,136.79,136.74,44.64964886]
[1745155883478,82.274,136.79,136.74,26.0]
[1745155891387,82.274,136.78,136.74,26.0]
[1745155897226,82.274,136.78,136.75,14.46]
[1745155900395,82.274,136.82,136.77,26.0]
[1745155900581,82.274,136.81,136.77,26.0]
[1745155901908,82.274,136.81,136.78,250.4]
[1745155903807,82.274,136.81,136.78,252.0142]
[1745155903996,82.274,136.84,136.78,252.0142]
[1745155904197,82.274,136.84,136.79,18.64964886]
[1745155904398,82.274,136.84,136.8,14.46]
[1745155907614,82.274,136.84,136.8,40.46]
[1745155913922,82.274,136.84,136.8,14.46]
[1745155920606,82.274,136.83,136.8,14.46]
[1745155920803,82.274,136.82,136.8,14.46]
[1745155926429,82.274,136.81,136.8,14.46]
[1745155930321,82.274,136.84,136.8,14.46]
[1745155930617,82.274,136.83,136.8,14.46]
[1745155932640,82.274,136.83,136.81,250.32]
[1745155937432,82.274,136.83,136.82,14.44]
[1745155947024,82.274,136.83,136.82,264.74]
[1745155962468,0.03,136.85,136.84,26.0]
[1745155967280,0.03,136.85,136.84,44.64964886]
[1745155967464,0.03,136.86,136.85,18.64964886]
[1745155968578,0.03,136.86,136.85,26.0]
[1745155972580,0.03,136.86,136.85,44.64964886]
[1745155973687,0.03,136.86,136.85,40.44]
[1745155974588,82.304,136.86,136.85,14.44]
[1745155975094,0.03,136.86,136.85,14.44]
[1745155976297,0.03,136.86,136.85,40.44]
[1745155986317,0.03,136.86,136.85,290.66]
[1745155991806,0.03,136.86,136.85,264.66]
[1745156020038,0.03,136.86,136.85,250.22]
[1745156020226,0.03,136.86,136.85,264.66]
[1745156033043,0.03,136.86,136.85,14.44]
[1745156033044,52.85714886,136.86,136.85,14.44]
[1745156036364,82.4,136.83,136.8,250.28]
[1745156036549,82.4,136.82,136.81,14.44]
[1745156040839,26.0,136.84,136.81,14.44]
[1745156041254,18.64964886,136.83,136.81,14.44]
[1745156041450,82.337,136.79,136.74,0.063]
[1745156041643,26.0,136.81,136.78,14.503]
[1745156045270,1.5206,136.83,136.79,250.36]
[1745156045569,108.4,136.82,136.79,250.36]
[1745156049652,82.4,136.81,136.79,250.36]
[1745156054776,82.4,136.8,136.79,250.36]
[1745156054953,1.615,136.83,136.79,250.36]
[1745156054954,44.64964886,136.82,136.79,250.36]
[1745156055160,50.66774886,136.82,136.79,250.36]
[1745156055976,82.337,136.77,136.74,0.063]
[1745156056162,82.337,136.76,136.75,264.84]
[1745156060858,100.98664886,136.76,136.75,264.84]
[1745156061296,82.337,136.76,136.75,264.84]
[1745156061780,82.274,136.74,136.73,0.063]
[1745156061964,18.64964886,136.77,136.73,0.063]
[1745156062165,7.6331,136.78,136.73,0.063]
[1745156062406,26.28274886,136.78,136.73,0.063]
[1745156063469,18.64964886,136.77,136.73,0.063]
[1745156064001,7.6331,136.78,136.73,0.063]
[1745156064170,26.28274886,136.78,136.73,0.063]
[1745156065286,26.28274886,136.78,136.74,264.9]
[1745156065798,26.0,136.75,136.74,264.9]
[1745156067385,82.337,136.73,136.72,0.063]
[1745156067588,26.0,136.75,136.72,264.963]
[1745156077611,26.0,136.75,136.73,264.96]
[1745156079009,82.4,136.72,136.71,0.0074229]
[1745156084816,26.0,136.75,136.71,0.0074229]
[1745156085110,26.0,136.75,136.72,250.52]
[1745156085302,26.0,136.75,136.72,264.96]
[1745156087011,82.3295771,136.7,136.69,0.063]
[1745156087214,26.0,136.72,136.71,250.52]
[1745156089016,51.04754886,136.72,136.71,250.52]
[1745156090821,44.64964886,136.72,136.71,250.52]
[1745156096607,82.337,136.69,136.67,0.063]
[1745156096809,82.337,136.69,136.68,265.063]
[1745156101133,82.337,136.69,136.68,266.6965]
[1745156102525,18.64964886,136.73,136.68,266.6965]
[1745156102830,82.4,136.72,136.68,266.6965]
[1745156103333,82.4,136.71,136.68,266.6965]
[1745156108419,82.4,136.7,136.68,266.6965]
[1745156116147,82.4,136.75,136.69,6.5343]
[1745156116332,82.4,136.74,136.7,18.64964886]
[1745156117849,82.4,136.74,136.73,27.5891]
[1745156118038,0.063,136.77,136.73,42.0291]
[1745156122955,82.4,136.76,136.73,42.0291]
[1745156126542,82.4,136.76,136.74,14.44]
[1745156128860,82.4,136.75,136.74,14.44]
[1745156131457,82.4,136.75,136.74,264.9]
[1745156134668,0.063,136.77,136.74,264.9]
[1745156144983,82.4,136.76,136.74,250.46]
[1745156145356,82.4,136.76,136.75,14.44]
[1745156145673,82.39999999,136.74,136.69,1.636]
[1745156145856,82.39999999,136.73,136.7,264.9]
[1745156149381,26.0,136.76,136.7,264.9]
[1745156149382,82.39999999,136.72,136.7,264.9]
[1745156154368,82.39999999,136.75,136.71,6.1217]
[1745156156291,82.39999999,136.75,136.72,18.64964886]
[1745156156587,0.063,136.77,136.74,18.64964886]
[1745156156768,0.063,136.77,136.75,14.44]
[1745156159695,0.063,136.77,136.76,250.44]
[1745156165495,0.063,136.77,136.76,264.88]
[1745156177905,0.063,136.77,136.76,264.953121]
[1745156190332,0.063,136.77,136.76,250.513121]
[1745156190504,0.063,136.77,136.76,264.933121]
[1745156224939,0.063,136.77,136.76,309.58276986]
[1745156227132,0.063,136.77,136.76,315.44799842]
[1745156228750,0.063,136.77,136.76,309.58276986]
[1745156230270,0.063,136.77,136.76,315.35212284]
[1745156233648,82.43,136.81,136.76,315.35212284]
[1745156234039,0.03,136.81,136.8,26.0]
[1745156234254,0.03,136.81,136.8,44.64964886]
[1745156235945,0.063,136.83,136.81,18.64964886]
[1745156236158,0.063,136.83,136.82,40.42]
[1745156238147,0.063,136.83,136.82,59.06964886]
[1745156238355,0.063,136.85,136.84,26.0]
[1745156239264,0.063,136.85,136.84,44.64964886]
[1745156241663,82.43,136.91,136.87,26.0]
[1745156242979,82.43,136.91,136.83,18.64964886]
[1745156245375,82.43,136.91,136.84,250.26]
[1745156245564,88.9489,136.88,136.85,14.46]
[1745156247758,82.4,136.88,136.85,14.46]
[1745156249151,82.4,136.87,136.85,14.46]
[1745156250077,0.03,136.89,136.86,18.64964886]
[1745156256403,0.03,136.89,136.88,26.0]
[1745156258207,0.03,136.89,136.88,276.18]
[1745156258574,0.03,136.89,136.88,250.18]
[1745156259488,82.43,136.89,136.88,250.18]
[1745156262801,82.43,136.89,136.88,264.64]
[1745156276097,82.43,136.89,136.88,250.18]
[1745156276440,82.43,136.89,136.88,264.82]
[1745156278324,0.03,136.89,136.88,264.82]
[1745156285735,0.03,136.92,136.88,264.82]
[1745156285929,0.03,136.92,136.91,26.0]
[1745156290842,0.03,136.92,136.88,264.82]
[1745156291041,0.03,136.92,136.89,26.0]
[1745156292039,81.93,136.93,136.89,26.0]
[1745156294038,81.93,136.93,136.9,14.64]
[1745156294536,81.93,136.92,136.9,14.64]
[1745156300521,2.4473006,136.94,136.9,14.64]
[1745156302837,2.4473006,136.94,136.9,33.28964886]
[1745156302838,9.988472,136.91,136.9,33.28964886]
[1745156304836,9.988472,136.91,136.9,14.64]
[1745156312539,9.988472,136.91,136.9,264.76]
[1745156318226,81.93,136.93,136.9,264.76]
[1745156320850,81.93,136.93,136.9,250.12]
[1745156321049,81.93,136.93,136.91,14.86]
[1745156323835,81.93,136.93,136.92,250.12]
[1745156326141,2.4473006,136.94,136.93,18.64964886]
[1745156329346,2.4473006,136.94,136.92,250.12]
[1745156329537,2.4473006,136.94,136.93,26.0]
[1745156330864,2.4473006,136.94,136.93,14.66]
[1745156334054,84.3773006,136.94,136.93,14.66]
[1745156340065,2.4473006,136.94,136.93,14.66]
[1745156343365,2.4473006,136.94,136.93,33.30964886]
[1745156354589,2.4473006,136.94,136.93,283.34964886]
[1745156360987,2.4473006,136.94,136.93,264.7]
[1745156361181,2.4473006,136.94,136.93,290.7]
[1745156364299,2.4473006,136.94,136.93,309.34964886]
[1745156366293,0.03,136.98,136.96,18.64964886]
[1745156372105,0.03,136.98,136.97,33.18964886]
[1745156372883,0.03,136.98,136.97,59.18964886]
[1745156373505,0.03,136.98,136.97,33.18964886]
[1745156375192,0.03,136.98,136.97,283.16964886]
[1745156377409,0.03,136.98,136.97,33.18964886]
[1745156379291,0.03,136.98,136.97,18.64964886]
[1745156383105,0.03,137.02,137.0,26.0]
[1745156383309,0.03,137.02,137.01,26.0]
[1745156385098,0.03,137.02,137.01,290.48]
[1745156388231,0.03,137.02,137.01,309.12964886]
[1745156391302,0.03,137.02,137.01,290.46]
[1745156391923,0.03,137.02,137.01,309.10964886]
[1745156403447,0.03,137.02,137.01,317.77955509]
[1745156403615,0.03,137.04,137.01,317.77955509]
[1745156405236,0.03,137.04,137.02,18.64964886]
[1745156405438,81.93,137.07,137.05,26.0]
[1745156405639,1.5545,137.09,137.06,14.46]
[1745156409353,6.1565,137.11,137.07,18.64964886]
[1745156410754,0.03,137.12,137.07,18.64964886]
[1745156410934,0.03,137.12,137.07,44.64964886]
[1745156411864,0.03,137.12,137.1,26.0]
[1745156412036,0.03,137.12,137.11,14.44]
[1745156413942,0.03,137.12,137.11,33.08964886]
[1745156414452,0.03,137.12,137.11,14.44]
[1745156415036,0.03,137.12,137.11,264.26]
[1745156422669,0.03,137.12,137.11,282.90964886]
[1745156425868,0.03,137.12,137.11,249.82]
[1745156426044,0.03,137.12,137.11,264.3]
[1745156427368,0.03,137.12,137.11,249.82]
[1745156427553,1.5343,137.12,137.11,264.3]
[1745156435449,0.03,137.12,137.11,264.3]
[1745156444383,0.03,137.12,137.11,249.82]
[1745156444566,0.03,137.12,137.11,264.3]
[1745156448991,0.03,137.12,137.11,282.94964886]
[1745156449686,0.03,137.18,137.14,26.0]
[1745156449888,0.03,137.18,137.12,18.64964886]
[1745156452488,0.03,137.18,137.13,14.98]
[1745156454283,81.96,137.18,137.13,14.98]
[1745156455990,81.96,137.18,137.14,249.72]
[1745156458697,81.93,137.17,137.14,249.72]
[1745156458900,83.5131,137.17,137.15,14.98]
[1745156459283,83.5131,137.17,137.14,249.72]
[1745156459581,1.5831,137.17,137.16,14.98]
[1745156463980,1.5831,137.17,137.16,264.7]
[1745156467209,0.03,137.18,137.16,264.7]
[1745156473484,0.03,137.18,137.16,249.72]
[1745156473689,0.03,137.18,137.17,14.98]
[1745156479919,26.0,137.19,137.17,14.98]
[1745156480125,1.6369,137.2,137.17,14.98]
[1745156480620,1.6369,137.2,137.16,249.72]
[1745156480825,1.6369,137.2,137.18,14.98]
[1745156481122,1.5162,137.18,137.16,249.72]
[1745156481304,1.5162,137.18,137.17,14.98]
[1745156481822,1.5162,137.18,137.07,33.8671]
[1745156481823,82.4,137.15,137.07,33.8671]
[1745156482021,82.4,137.14,137.08,14.98]
[1745156485125,82.4,137.14,137.09,249.74]
[1745156486726,82.4,137.13,137.09,249.74]
[1745156492006,82.4,137.12,137.09,249.74]
[1745156492206,82.4,137.11,137.09,249.74]
[1745156493623,82.4,137.1,137.09,249.74]
[1745156498220,1.5396,137.13,137.09,249.74]
[1745156503635,1.5396,137.13,137.1,14.86]
[1745156504229,82.4,137.12,137.1,14.86]
[1745156507542,82.4,137.12,137.11,249.82]
[1745156510042,1.5396,137.13,137.11,249.82]
[1745156510238,26.0,137.14,137.11,249.82]
[1745156511133,1.6643,137.16,137.11,249.82]
[1745156518054,26.0,137.17,137.11,249.82]
[1745156520528,31.64550385,137.21,137.11,249.82]
[1745156520529,2.4974031,137.21,137.13,18.64964886]
[1745156520731,2.4974031,137.21,137.14,14.76]
[1745156520931,28.4974031,137.21,137.14,14.76]
[1745156521142,2.4974031,137.21,137.14,14.76]
[1745156521349,28.4974031,137.21,137.14,14.76]
[1745156521546,2.4974031,137.21,137.14,14.76]
[1745156521757,28.4974031,137.21,137.14,14.76]
[1745156523340,26.0,137.2,137.14,14.76]
[1745156527565,82.4,137.19,137.14,14.76]
[1745156532252,82.4,137.18,137.12,7.8385]
[1745156532552,82.4,137.17,137.13,14.76]
[1745156536387,82.4,137.16,137.13,14.76]
[1745156537462,82.4,137.16,137.14,249.72]
[1745156542189,82.4,137.15,137.14,249.72]
[1745156543970,6.4665,137.19,137.14,264.48]
[1745156548101,82.4,137.18,137.14,264.48]
[1745156550809,108.4,137.17,137.14,264.48]
[1745156554002,82.4,137.16,137.14,264.48]
[1745156554216,82.4,137.15,137.14,264.48]
[1745156558624,82.4,137.15,137.14,264.34]
[1745156559822,26.0,137.15,137.14,264.34]
[1745156568529,2.4974031,137.21,137.14,264.34]
[1745156568827,26.0,137.19,137.14,264.34]
[1745156580837,26.0,137.19,137.14,249.72]
[1745156581139,26.0,137.19,137.15,14.6]
[1745156582635,26.0,137.15,137.14,249.72]
[1745156582825,26.0,137.15,137.14,264.32]
[1745156604460,26.0,137.15,137.14,14.6]
[1745156605755,26.0,137.15,137.13,249.82]
[1745156605945,26.0,137.15,137.14,14.62]
[1745156608555,82.4,137.13,137.12,249.82]
[1745156608755,101.04964886,137.13,137.12,264.4]
[1745156609064,127.04964886,137.13,137.12,264.4]
[1745156609439,18.64964886,137.12,137.08,0.063]
[1745156609736,44.64964886,137.09,137.08,0.063]
[1745156610484,19.64964886,137.09,137.08,0.063]
[1745156610650,26.94412694,137.09,137.08,0.063]
[1745156610837,52.39142932,137.09,137.08,0.063]
[1745156611161,96.08142932,137.09,137.08,0.063]
[1745156611748,109.38612932,137.09,137.08,0.063]
[1745156612248,109.38612932,137.09,137.06,0.063]
[1745156612249,85.19964886,137.07,137.06,0.063]
[1745156613245,92.49519128,137.07,137.06,0.01551832]
[1745156615572,82.13248168,136.99,136.98,249.983]
[1745156615767,26.0,137.01,136.98,264.583]
[1745156616264,18.64964886,137.04,136.99,1.6312]
[1745156617280,26.0,137.06,136.99,1.6312]
[1745156617770,26.0,137.04,136.99,1.6312]
[1745156618444,18.64964886,137.07,136.99,1.6312]
[1745156618648,26.0,137.04,136.99,1.6312]
[1745156624378,82.4,137.03,136.99,1.6312]
[1745156628064,18.64964886,137.02,136.98,264.583]
[1745156630184,82.4,137.01,136.98,264.583]
[1745156630384,82.4,137.0,136.98,264.583]
[1745156636165,82.4,136.99,136.98,264.583]
[1745156650780,26.0,137.04,136.98,264.583]
[1745156650781,82.4,137.03,136.98,264.583]
[1745156656681,82.4,137.02,136.98,264.583]
[1745156664405,82.4,137.01,136.98,264.583]
[1745156668310,82.4,137.0,136.98,264.583]
[1745156678116,81.9,137.0,136.98,264.583]
[1745156681316,81.9,137.0,136.99,14.46]
[1745156690834,81.9,137.0,136.99,264.46]
[1745156723571,12.5316767,137.0,136.99,264.46]
[1745156742994,31.18132556,137.0,136.99,264.46]
[1745156743191,57.18132556,137.0,136.99,264.46]
[1745156743382,31.18132556,137.0,136.99,264.46]
[1745156745195,31.18132556,137.0,136.99,250.0]
[1745156745488,31.18132556,137.0,136.99,264.44]
[1745156747089,108.33699999,136.98,136.97,0.063]
[1745156747293,119.22697669,136.98,136.97,14.503]
[1745156750406,119.22697669,136.98,136.96,250.123]
[1745156750407,82.21099999,136.96,136.95,0.063]
[1745156750616,119.10097669,136.96,136.95,14.503]
[1745156755115,119.10097669,136.96,136.95,264.603]
[1745156756324,10.8899767,136.96,136.95,264.603]
[1745156757316,1.6417,137.0,136.95,264.603]
[1745156757317,10.8899767,136.99,136.95,264.603]
[1745156757521,26.0,137.0,136.95,264.603]
[1745156757818,10.8899767,136.98,136.95,264.603]
[1745156757999,10.8899767,136.96,136.95,250.163]
[1745156758201,10.8899767,136.96,136.95,264.603]
[1745156758401,10.8899767,136.96,136.93,250.163]
[1745156758402,100.92364886,136.94,136.93,250.163]
[1745156758602,29.53962556,136.94,136.93,264.603]
[1745156759327,10.8899767,136.94,136.93,264.603]
[1745156761207,29.53962556,136.94,136.93,264.603]
[1745156770245,32.15982556,136.94,136.93,264.603]
[1745156770410,18.64964886,136.93,136.87,250.243]
[1745156770611,30.53962556,136.93,136.92,14.503]
[1745156770834,30.53962556,136.93,136.92,14.44]
[1745156771319,26.0,136.9,136.87,0.063]
[1745156771527,10.8899767,136.9,136.87,0.063]
[1745156772241,73.09953236,136.9,136.87,0.063]
[1745156772420,82.20593236,136.9,136.87,0.063]
[1745156773136,89.51053425,136.9,136.87,0.063]
[1745156773828,155.07053425,136.9,136.87,0.063]
[1745156774145,19.64964886,136.88,136.87,0.063]
[1745156774445,45.64964886,136.85,136.82,0.063]
[1745156774749,82.211,136.8,136.79,0.03]
[1745156775038,29.53962556,136.8,136.79,0.03]
[1745156775247,10.8899767,136.8,136.79,14.49]
[1745156775532,10.8899767,136.81,136.79,14.49]
[1745156775747,36.8899767,136.82,136.79,14.49]
[1745156775947,26.0,136.82,136.79,14.49]
[1745156776122,18.64964886,136.86,136.8,1.6258]
[1745156776639,18.64964886,136.88,136.8,1.6258]
[1745156776827,18.64964886,136.88,136.81,6.0855]
[1745156777030,1.0,136.92,136.81,6.0855]
[1745156777216,10.19569436,136.93,136.81,6.0855]
[1745156777411,18.64964886,136.92,136.81,6.0855]
[1745156777622,26.0,136.89,136.81,6.0855]
[1745156778735,18.64964886,136.92,136.81,6.0855]
[1745156779129,82.4,136.85,136.81,6.0855]
[1745156789937,82.4,136.89,136.82,18.64964886]
[1745156790255,82.4,136.88,136.82,18.64964886]
[1745156791952,82.4,136.87,136.79,0.03]
[1745156792145,32.1772,136.9,136.83,14.46]
[1745156792146,82.4,136.86,136.83,14.46]
[1745156792347,82.4,136.85,136.83,14.46]
[1745156794759,82.4,136.85,136.84,250.28]
[1745156795060,1.5878,136.88,136.84,250.28]
[1745156795061,44.64964886,136.86,136.84,250.28]
[1745156800262,101.04964886,136.85,136.84,250.28]
[1745156803542,82.4,136.85,136.84,250.28]
[1745156806338,27.5878,136.88,136.84,250.28]
[1745156809460,26.0,136.88,136.84,250.28]
[1745156810476,26.0,136.9,136.84,250.28]
[1745156810638,18.64964886,136.91,136.84,250.28]
[1745156810841,44.64964886,136.91,136.84,250.28]
[1745156815072,82.4,136.87,136.84,250.28]
[1745156815370,82.4,136.86,136.84,250.28]
[1745156817674,82.4,136.9,136.84,250.28]
[1745156817873,82.4,136.89,136.84,250.28]
[1745156819171,82.4,136.92,136.85,26.37984886]
[1745156819386,82.4,136.91,136.85,26.37984886]
[1745156819863,82.4,136.91,136.85,52.37984886]
[1745156820273,82.4,136.91,136.88,26.0]
[1745156820478,82.4,136.91,136.89,14.46]
[1745156820977,82.4,136.91,136.9,1.5043]
[1745156822271,82.4,136.91,136.86,1.5823]
[1745156822476,82.4,136.91,136.87,40.44]
[1745156829780,82.4,136.93,136.87,40.44]
[1745156835484,82.4,136.93,136.88,268.80964886]
[1745156835786,82.4,136.93,136.91,26.0]
[1745156836087,0.063,136.94,136.92,14.44]
[1745156841687,0.063,136.94,136.93,250.14]
[1745156842393,0.063,136.94,136.93,264.58]
[1745156843792,6.5116,136.94,136.93,264.58]
[1745156844091,18.64964886,136.92,136.9,250.12]
[1745156844292,18.64964886,136.92,136.91,14.44]
[1745156844869,18.64964886,136.91,136.9,250.12]
[1745156845067,18.64964886,136.91,136.9,264.56]
[1745156847477,26.0,136.91,136.9,264.56]
[1745156853785,44.64964886,136.91,136.9,264.56]
[1745156857406,26.0,136.91,136.9,264.56]
[1745156864496,26.0,136.93,136.9,264.56]
[1745156864812,26.0,136.92,136.9,264.56]
[1745156865309,0.063,136.94,136.91,8.0168]
[1745156877345,0.063,136.94,136.91,1.5032]
[1745156881233,0.063,136.94,136.9,264.56]
[1745156881735,82.4,136.93,136.9,264.56]
[1745156891334,82.4,136.92,136.9,264.56]
[1745156903652,82.4,136.92,136.91,14.44]
[1745156919668,0.063,136.94,136.91,14.44]
[1745156920175,0.063,136.94,136.91,22.0937]
[1745156921466,0.063,136.94,136.91,15.9655]
[1745156922455,0.063,136.94,136.91,14.44]
[1745156932579,82.4,136.93,136.91,14.44]
[1745156936166,83.9727,136.93,136.91,14.44]
[1745156938381,82.4,136.92,136.91,14.44]
[1745156942188,7.7391,136.93,136.91,14.44]
[1745156942607,101.04964886,136.92,136.91,14.44]
[1745156944576,82.4,136.92,136.91,14.44]
[1745156946900,7.7391,136.93,136.91,14.44]
[1745156952908,1.5727,136.93,136.91,14.44]
[1745156956120,18.64964886,136.92,136.91,14.44]
[1745156956483,44.64964886,136.92,136.91,14.44]
[1745156964024,25.17614886,136.92,136.91,14.44]
[1745156964191,32.47968377,136.92,136.91,14.44]
[1745156965613,82.4,136.88,136.86,250.22]
[1745156965913,82.4,136.87,136.86,250.22]
[1745156966103,82.4,136.87,136.86,264.66]
[1745156969116,101.04964886,136.87,136.86,264.66]
[1745156970421,18.64964886,136.87,136.86,264.66]
[1745156971617,108.4,136.85,136.84,250.3]
[1745156971922,82.4,136.84,136.78,1.5423]
[1745156972100,82.4,136.83,136.8,14.44]
[1745156975223,82.4,136.83,136.81,250.32]
[1745156976219,82.4,136.82,136.81,250.32]
[1745156999938,6.1048,136.86,136.81,250.32]
[1745157000314,26.0,136.82,136.81,250.32]
[1745157000516,26.0,136.82,136.81,264.76]
[1745157001142,6.1048,136.86,136.81,264.76]
[1745157001438,26.0,136.86,136.81,264.76]
[1745157002029,1.6403,136.88,136.81,264.76]
[1745157002335,26.0,136.86,136.81,264.76]
[1745157005654,82.4,136.85,136.81,264.76]
[1745157005943,82.4,136.84,136.81,264.76]
[1745157011527,82.4,136.83,136.81,264.76]
[1745157012959,82.4,136.83,136.82,14.44]
[1745157017361,26.0,136.86,136.82,14.44]
[1745157017656,26.0,136.86,136.83,250.36]
[1745157019149,101.04964886,136.85,136.83,250.36]
[1745157022454,101.04964886,136.85,136.84,14.44]
[1745157022660,18.64964886,136.85,136.84,14.44]
[1745157024463,18.64964886,136.82,136.8,250.36]
[1745157024759,101.04964885,136.81,136.8,250.36]
[1745157024933,101.04964885,136.81,136.8,264.8]
[1745157025473,127.04964885,136.81,136.8,264.8]
[1745157026651,26.0,136.81,136.8,264.8]
[1745157026852,26.0,136.83,136.8,264.8]
[1745157031958,82.4,136.82,136.8,264.8]
[1745157038074,82.4,136.81,136.8,264.8]
[1745157041863,9.96528745,136.9,136.8,264.8]
[1745157041864,82.4,136.83,136.8,264.8]
[1745157049681,82.4,136.82,136.8,264.8]
[1745157054680,82.4,136.81,136.8,250.36]
[1745157054991,82.4,136.81,136.8,264.78]
[1745157058392,26.0,136.81,136.8,264.78]
[1745157069591,44.64964886,136.83,136.8,264.78]
[1745157076005,26.0,136.83,136.8,264.78]
[1745157076306,44.64964886,136.85,136.8,264.78]
[1745157089007,0.063,136.88,136.8,264.78]
[1745157089217,26.0,136.86,136.8,264.78]
[1745157092715,18.64964886,136.85,136.8,264.78]
[1745157092900,82.4,136.84,136.8,264.78]
[1745157096524,82.4,136.83,136.8,264.78]
[1745157102404,82.4,136.82,136.8,264.78]
[1745157102614,82.4,136.81,136.8,264.78]
[1745157108226,18.64964886,136.85,136.8,264.78]
[1745157108630,20.29694886,136.85,136.8,264.78]
[1745157108808,20.29694886,136.85,136.81,14.42]
[1745157113521,44.64964886,136.83,136.82,250.38]
[1745157124773,26.0,136.8,136.79,0.03]